bitfinex/quotes_ETHUSD_20211001
["timestamp","ask_amount","ask_price","bid_price","bid_amount"]
[1633104872670,0.0009723,3236.6,3236.5,0.012]
[1633104873067,0.0009723,3236.6,3236.1,0.012]
[1633104873468,0.0009723,3236.6,3236.2,0.72663615]
[1633104873665,0.0009723,3236.6,3236.2,1.71994102]
[1633104873865,0.0009723,3236.6,3236.3,0.012]
[1633104875164,0.0009723,3236.6,3236.4,0.92131189]
[1633104875565,0.0009723,3236.6,3236.5,7.262]
[1633104876071,0.0009723,3236.6,3236.5,0.012]
[1633104876667,1.3851723,3236.6,3236.5,0.012]
[1633104878269,3.7953874,3238.1,3236.6,2.54701929]
[1633104878469,0.186,3238.1,3236.7,0.32157889]
[1633104878672,0.186,3238.1,3237.5,0.98286875]
[1633104878673,0.92963254,3238.1,3237.5,0.98286875]
[1633104879069,0.92963254,3238.1,3237.6,0.003]
[1633104879269,0.91295656,3237.8,3237.6,0.003]
[1633104879468,0.92963254,3238.1,3237.6,0.003]
[1633104879668,0.92963254,3238.1,3237.3,0.006]
[1633104880471,0.89969747,3237.5,3237.3,0.006]
[1633104880876,0.94148264,3237.6,3236.8,0.009]
[1633104881071,0.186,3237.7,3236.8,0.009]
[1633104881871,0.186,3237.7,3237.2,1.04311281]
[1633104882070,0.186,3237.7,3237.2,0.90338494]
[1633104882271,0.186,3237.7,3237.3,0.006]
[1633104883172,0.95544806,3237.6,3237.3,0.006]
[1633104883971,0.95544806,3237.6,3236.8,0.009]
[1633104884375,0.95544806,3237.6,3236.8,0.93724762]
[1633104884576,0.95544806,3237.6,3237.1,0.80924757]
[1633104884972,0.95544806,3237.6,3237.2,0.006]
[1633104886378,0.95544806,3237.6,3236.8,0.009]
[1633104886574,0.95963656,3237.1,3236.8,0.009]
[1633104886775,2.87397377,3237.7,3236.8,0.009]
[1633104886975,0.186,3237.7,3236.9,0.76447565]
[1633104887375,0.186,3237.7,3237.0,0.009]
[1633104887977,1.12918858,3237.4,3237.0,0.009]
[1633104888377,0.186,3237.7,3237.0,0.009]
[1633104890381,0.86209584,3237.4,3237.0,0.009]
[1633104891781,0.186,3237.7,3237.0,0.009]
[1633104892980,0.89171813,3237.3,3237.0,0.009]
[1633104893181,0.186,3237.7,3237.0,0.009]
[1633104894184,0.88351114,3237.4,3236.8,3.509]
[1633104894380,0.88351114,3237.4,3236.9,0.009]
[1633104897587,0.88351114,3237.4,3237.0,2.02614061]
[1633104897988,0.88351114,3237.4,3237.1,0.006]
[1633104899590,0.88351114,3237.4,3236.9,0.009]
[1633104900591,0.96690562,3237.3,3236.9,0.009]
[1633104900791,0.88351114,3237.4,3236.9,0.009]
[1633104901192,0.88351114,3237.4,3237.0,0.48157272]
[1633104901597,0.88351114,3237.4,3237.1,0.006]
[1633104901791,0.92616406,3237.3,3237.1,0.006]
[1633104901993,0.92616406,3237.3,3236.9,0.009]
[1633104902192,0.92616406,3237.3,3236.7,0.009]
[1633104902392,0.92616406,3237.3,3236.8,0.48189613]
[1633104902799,0.92616406,3237.3,3236.9,0.009]
[1633104903395,0.92616406,3237.3,3236.7,0.009]
[1633104903593,0.92616406,3237.3,3236.8,0.4821233]
[1633104903995,0.92616406,3237.3,3236.9,0.009]
[1633104904595,0.92616406,3237.3,3236.7,0.009]
[1633104904794,0.186,3237.7,3236.8,0.48231681]
[1633104904996,1.294,3237.3,3236.8,0.48231681]
[1633104905202,2.7887492,3237.2,3236.9,0.009]
[1633104905396,0.045551,3237.4,3236.9,0.009]
[1633104905397,0.186,3237.1,3236.9,0.009]
[1633104905595,0.186,3237.0,3236.7,0.009]
[1633104905794,0.99296723,3236.8,3236.7,0.009]
[1633104905994,1.98536934,3236.8,3236.7,0.009]
[1633104908196,0.99240211,3236.8,3236.7,0.009]
[1633104908595,0.186,3236.8,3236.7,0.009]
[1633104909393,0.186,3236.8,3236.7,0.01842462]
[1633104912197,2.42579551,3236.8,3236.7,0.01842462]
[1633104912402,0.84679402,3236.6,3236.4,0.003]
[1633104912600,6.94553819,3236.5,3235.9,0.006]
[1633104912799,9.38116545,3236.4,3235.2,0.009]
[1633104912997,0.90612426,3235.5,3235.2,0.009]
[1633104913199,0.186,3235.4,3235.2,0.009]
[1633104913397,0.186,3235.3,3235.2,0.009]
[1633104913598,2.73287692,3236.0,3235.2,0.009]
[1633104913599,2.73287692,3236.0,3235.3,0.29337467]
[1633104913796,0.186,3235.9,3235.2,0.009]
[1633104914002,2.38751425,3235.9,3235.4,0.009]
[1633104914198,2.15155344,3235.8,3235.4,0.009]
[1633104914399,1.294,3235.6,3235.4,0.009]
[1633104914600,0.186,3235.5,3235.2,0.009]
[1633104914799,0.186,3235.4,3235.2,0.009]
[1633104915002,0.186,3235.3,3235.2,0.009]
[1633104915202,0.65024783,3236.4,3235.2,1.382913]
[1633104915400,0.65024783,3236.4,3235.2,0.03403276]
[1633104915401,0.186,3235.7,3235.2,0.03403276]
[1633104915666,0.186,3236.1,3235.3,0.088913]
[1633104916065,0.85096142,3235.9,3235.7,0.76879688]
[1633104916466,0.85096142,3235.9,3235.8,0.006]
[1633104917671,2.38050342,3235.9,3235.8,0.006]
[1633104918070,1.08650342,3235.9,3235.2,0.009]
[1633104918668,1.09295821,3235.3,3235.2,0.009]
[1633104918867,1.27895821,3235.3,3235.2,0.009]
[1633104919672,2.57295821,3235.3,3235.2,0.009]
[1633104919867,5.49919461,3235.3,3235.2,0.009]
[1633104920067,2.57295821,3235.3,3235.2,0.009]
[1633104921667,2.68975821,3235.3,3235.2,0.009]
[1633104921867,2.57295821,3235.3,3235.2,0.009]
[1633104922070,5.36369957,3235.3,3235.2,0.009]
[1633104922268,5.48529957,3235.3,3235.2,0.009]
[1633104922470,2.69375821,3235.3,3235.2,0.009]
[1633104922669,5.23638523,3235.3,3235.2,0.009]
[1633104923070,2.57295821,3235.3,3235.2,0.009]
[1633104923271,3.23517172,3235.3,3235.2,0.009]
[1633104923470,5.27036382,3235.3,3235.2,0.009]
[1633104923673,2.69695821,3235.3,3235.2,0.009]
[1633104923873,2.57295821,3235.3,3235.2,0.009]
[1633104925773,2.57295821,3235.3,3235.1,0.817]
[1633104925974,1.27895821,3235.3,3235.1,0.817]
[1633104927177,0.91522292,3235.2,3235.1,0.817]
[1633104927375,2.39522292,3235.2,3235.1,0.817]
[1633104927575,2.51362292,3235.2,3235.1,0.817]
[1633104927776,2.44077392,3235.2,3235.1,0.817]
[1633104927980,2.44077392,3235.2,3235.1,0.815027]
[1633104928175,2.55997392,3235.2,3235.1,0.815027]
[1633104928376,2.44077392,3235.2,3235.1,0.815027]
[1633104928575,2.56077392,3235.2,3235.1,0.815027]
[1633104928976,2.55837392,3235.2,3235.1,0.815027]
[1633104929176,2.56317392,3235.2,3235.1,0.815027]
[1633104929377,1.26437392,3235.2,3235.1,0.815027]
[1633104929580,0.349151,3235.2,3235.1,0.815027]
[1633104929779,0.231551,3235.2,3235.1,0.815027]
[1633104934383,16.642351,3235.2,3235.1,0.815027]
[1633104934583,15.348351,3235.2,3235.1,0.815027]
[1633104934782,0.353951,3235.2,3235.1,0.815027]
[1633104935181,0.348351,3235.2,3235.1,0.815027]
[1633104935381,0.351551,3235.2,3235.1,0.815027]
[1633104935584,0.348351,3235.2,3235.1,0.815027]
[1633104935983,0.349151,3235.2,3235.1,0.815027]
[1633104936182,0.347551,3235.2,3235.1,0.815027]
[1633104936381,0.348351,3235.2,3235.1,0.815027]
[1633104936989,0.231551,3235.2,3235.1,0.815027]
[1633104937383,0.186,3235.2,3235.1,0.815027]
[1633104937587,0.302,3235.2,3235.1,2.109027]
[1633104937785,0.186,3235.2,3235.1,0.815027]
[1633104938488,1.05374959,3235.2,3235.1,0.815027]
[1633104940588,1.16974959,3235.2,3235.1,0.815027]
[1633104940786,1.05374959,3235.2,3235.1,0.815027]
[1633104942388,1.16614959,3235.2,3235.1,0.815027]
[1633104942591,1.05014959,3235.2,3235.1,0.815027]
[1633104944088,16.05014959,3235.2,3235.1,0.815027]
[1633104944288,1.05014959,3235.2,3235.1,0.815027]
[1633104944690,16.05014959,3235.2,3235.1,0.815027]
[1633104944890,1.05014959,3235.2,3235.1,0.815027]
[1633104945088,16.05014959,3235.2,3235.1,0.815027]
[1633104945288,1.05014959,3235.2,3235.1,0.765027]
[1633104950294,16.05014959,3235.2,3235.1,0.765027]
[1633104951557,1.05014959,3235.2,3235.1,0.765027]
[1633104954566,16.05014959,3235.2,3235.1,0.765027]
[1633104954700,16.05014959,3235.2,3235.0,0.366109]
[1633104954899,1.05014959,3235.2,3235.0,0.366109]
[1633104955901,1.05014959,3235.2,3234.5,0.003]
[1633104956101,0.97588896,3234.6,3234.5,0.003]
[1633104956298,0.97588896,3234.6,3234.5,1.297]
[1633104956299,0.186,3234.6,3234.5,1.297]
[1633104956902,0.186,3234.6,3234.5,0.003]
[1633104957299,1.26326372,3234.6,3234.5,0.003]
[1633104957899,0.186,3234.6,3234.5,0.003]
[1633104958101,0.186,3234.6,3234.5,1.297]
[1633104958402,0.186,3235.3,3234.5,1.297]
[1633104958602,0.186,3235.3,3235.1,0.079913]
[1633104959004,0.186,3235.3,3235.2,0.75158508]
[1633104959400,0.186,3235.3,3235.2,2.04558508]
[1633104962000,0.186,3235.3,3235.2,1.294]
[1633104963800,0.186,3235.3,3235.2,2.08851987]
[1633104964204,0.003,3235.5,3235.2,2.08851987]
[1633104964401,0.003,3235.5,3235.3,1.294]
[1633104964704,0.003,3235.5,3235.2,0.79451987]
[1633104965499,0.003,3235.5,3235.2,1.90221987]
[1633104965702,0.003,3235.5,3235.3,1.294]
[1633104965899,0.003,3235.5,3235.2,1.90221987]
[1633104966701,0.003,3235.5,3235.3,1.294]
[1633104966903,0.003,3235.5,3235.2,1.90221987]
[1633104967500,0.003,3235.5,3235.2,1.88803273]
[1633104967704,0.003,3235.5,3235.3,1.294]
[1633104967901,0.003,3235.5,3235.2,1.88803273]
[1633104968906,0.003,3235.5,3235.3,1.294]
[1633104969105,2.84085078,3235.5,3235.2,1.88803273]
[1633104970106,2.84085078,3235.5,3235.3,1.294]
[1633104970307,2.84085078,3235.5,3235.2,1.88803273]
[1633104970713,2.84085078,3235.5,3235.2,1.09351286]
[1633104971509,2.84085078,3235.5,3234.7,2.47633369]
[1633104971709,0.94501437,3235.4,3235.1,1.294]
[1633104971909,2.84085078,3235.5,3235.0,1.08260498]
[1633104972112,2.84085078,3235.5,3234.9,1.027]
[1633104972573,2.84085078,3235.5,3235.0,1.1125]
[1633104972711,2.84085078,3235.5,3234.9,1.3756]
[1633104972912,0.73790403,3235.4,3234.8,0.98410487]
[1633104973113,0.73790403,3235.4,3234.9,0.98681]
[1633104973511,2.84085078,3235.5,3234.9,0.98681]
[1633104973713,2.84085078,3235.5,3235.2,1.294]
[1633104973911,2.84085078,3235.5,3234.9,0.98681]
[1633104974912,2.84085078,3235.5,3235.2,1.294]
[1633104975112,2.84085078,3235.5,3235.3,0.93735413]
[1633104975914,2.84085078,3235.5,3235.4,8.394]
[1633104976114,0.186,3235.8,3235.5,7.94085078]
[1633104976316,0.003,3236.0,3235.5,14.13285078]
[1633104976517,0.003,3236.0,3235.7,1.0196]
[1633104976915,0.003,3236.0,3235.5,2.84085078]
[1633104977714,0.003,3236.0,3235.6,0.99220502]
[1633104978515,0.003,3236.0,3235.8,0.84257342]
[1633104978715,0.003,3236.0,3235.8,3.93288952]
[1633104979215,0.003,3236.0,3235.8,7.02310952]
[1633104980617,0.003,3236.0,3235.8,6.1805361]
[1633104987685,2.28140585,3236.0,3235.8,6.1805361]
[1633104987887,0.003,3236.0,3235.8,6.1805361]
[1633104989486,2.28123795,3236.0,3235.8,6.1805361]
[1633104989689,0.003,3236.0,3235.8,6.1805361]
[1633104993993,0.003,3236.0,3235.8,10.8156561]
[1633104994194,0.003,3236.0,3235.8,6.1805361]
[1633104994599,1.294,3235.9,3235.8,6.1805361]
[1633104994796,1.559913,3235.9,3235.5,2.84085078]
[1633104994995,3.16143607,3235.8,3235.5,2.84085078]
[1633104995200,2.47205412,3235.7,3235.5,2.84085078]
[1633104995396,2.28608502,3235.6,3235.5,2.84085078]
[1633104995603,0.186,3235.6,3235.5,2.84085078]
[1633104995997,0.53723946,3236.0,3235.6,1.1649]
[1633104996198,2.28585179,3235.9,3235.7,2.65368447]
[1633104996398,0.003,3236.0,3235.8,4.63489]
[1633104996999,0.003,3236.0,3235.9,0.96121893]
[1633104997196,0.003,3236.0,3235.9,1.91295941]
[1633104997396,0.003,3236.0,3235.9,3.22635941]
[1633104998202,2.2854153,3236.4,3235.9,14.99351869]
[1633104998399,0.53701782,3236.5,3235.9,14.99351869]
[1633104998400,0.003,3236.5,3236.0,0.03405431]
[1633104998600,0.003,3237.0,3236.1,13.1377]
[1633104998800,0.003,3237.0,3236.5,3.08889]
[1633104999001,0.003,3237.0,3236.9,0.78925142]
[1633104999201,0.003,3237.0,3236.9,8.05549765]
[1633104999998,2.29444611,3237.4,3237.0,3.0]
[1633105000199,0.003,3237.5,3237.1,2.52486592]
[1633105000401,0.003,3237.5,3237.3,4.63302]
[1633105000599,0.003,3237.5,3237.4,0.97627593]
[1633105000998,0.003,3237.5,3237.3,7.13676363]
[1633105002003,0.265913,3238.1,3237.3,7.13676363]
[1633105002004,0.71577089,3238.2,3238.0,13.63856]
[1633105002205,0.009,3238.5,3238.4,5.34300769]
[1633105002404,0.009,3238.5,3238.4,13.96466665]
[1633105002609,0.009,3238.5,3238.4,11.57248345]
[1633105002802,0.006,3238.6,3238.5,7.55]
[1633105003002,0.006,3238.6,3238.5,7.85998204]
[1633105003202,0.006,3238.6,3238.5,1.00998204]
[1633105003407,0.006,3238.7,3238.6,6.2]
[1633105003605,0.006,3238.7,3238.6,13.35323177]
[1633105003802,0.006,3238.8,3238.7,6.05]
[1633105004002,0.006,3238.8,3238.7,14.74966142]
[1633105004201,0.006,3238.8,3238.6,4.710733]
[1633105004402,0.006,3238.8,3238.6,7.18545385]
[1633105004603,0.006,3238.8,3238.7,8.11426254]
[1633105004802,0.006,3238.8,3238.7,2.46426254]
[1633105005405,0.006,3238.8,3238.6,4.710733]
[1633105005603,0.006,3238.8,3238.6,7.7977732]
[1633105005804,0.006,3238.8,3238.6,10.28946112]
[1633105006403,0.006,3238.8,3238.7,2.48961872]
[1633105007002,0.006,3239.2,3238.6,7.7977732]
[1633105007202,0.006,3239.2,3238.8,4.6306]
[1633105007405,0.006,3239.3,3239.0,6.17398]
[1633105007605,0.006,3239.3,3239.0,8.6559898]
[1633105007806,4.64739,3240.1,3239.1,6.3369838]
[1633105008005,4.64739,3240.1,3239.2,2.58298277]
[1633105008406,0.92781418,3239.5,3239.2,2.58298277]
[1633105008609,0.83157228,3239.6,3239.1,5.59695913]
[1633105009008,0.83157228,3239.6,3239.4,3.08699]
[1633105009207,0.00117302,3239.5,3239.4,3.08699]
[1633105009608,1.00117302,3239.5,3239.4,3.08699]
[1633105009807,1.92399399,3239.5,3239.4,3.08699]
[1633105010210,3.21799399,3239.5,3239.4,3.08699]
[1633105010809,1.92399399,3239.5,3239.4,3.08699]
[1633105011213,1.00117302,3239.5,3239.4,3.08699]
[1633105011409,1.00117302,3239.5,3239.4,6.23300442]
[1633105011608,1.00117302,3239.5,3239.4,5.96742848]
[1633105011807,1.00117302,3239.5,3239.4,3.08699]
[1633105012607,1.00117302,3239.5,3239.4,5.74157616]
[1633105013008,1.00117302,3239.5,3239.4,5.63710898]
[1633105013410,0.93549023,3239.5,3239.4,11.831094]
[1633105013610,0.93549023,3239.5,3239.4,11.93581903]
[1633105014008,0.93549023,3239.5,3239.4,9.41416712]
[1633105014214,0.93549023,3239.5,3239.4,3.22216712]
[1633105015809,0.93549023,3239.5,3239.4,3.11744209]
[1633105017008,0.93549023,3239.5,3239.4,16.39743209]
[1633105017209,0.93549023,3239.5,3239.4,7.74743209]
[1633105017611,0.006,3239.9,3239.8,0.77805095]
[1633105018012,0.006,3239.9,3239.8,7.96981818]
[1633105018213,0.006,3239.9,3239.8,14.19763562]
[1633105018613,0.006,3240.1,3239.9,8.85]
[1633105018813,0.006,3240.1,3240.0,11.49874367]
[1633105019117,0.10463811,3240.9,3240.3,3.0854]
[1633105019118,0.006,3240.8,3240.3,3.0854]
[1633105019315,0.006,3240.8,3240.4,12.08776456]
[1633105019513,0.006,3240.8,3240.4,5.89576456]
[1633105019712,0.00724116,3240.7,3240.4,3.0856129]
[1633105020113,0.87673509,3240.7,3240.4,3.0856129]
[1633105020313,0.87673509,3240.7,3240.2,3.0854]
[1633105020314,0.00724116,3240.7,3240.2,3.0854]
[1633105020521,0.006,3241.2,3240.2,3.0854]
[1633105020522,0.006,3241.6,3240.7,0.90757855]
[1633105020719,0.006,3241.6,3241.5,13.15400401]
[1633105020920,0.016,3242.1,3241.6,11.45]
[1633105021116,0.016,3242.1,3241.9,0.079913]
[1633105021316,0.006,3242.3,3242.0,1.16406422]
[1633105021516,0.006,3242.7,3242.0,7.35606422]
[1633105021720,0.53211061,3243.4,3242.4,3.08375]
[1633105021918,0.53211061,3243.4,3242.5,0.003]
[1633105022117,0.7181165,3243.4,3242.5,0.003]
[1633105022320,4.38765725,3245.3,3244.3,11.20992743]
[1633105022524,2.09218376,3245.6,3244.9,13.45]
[1633105022722,0.006,3246.2,3246.0,5.39550138]
[1633105022921,0.00342359,3246.7,3246.1,10.6]
[1633105023118,0.00342359,3246.7,3246.2,0.265913]
[1633105023318,0.00342359,3246.7,3246.3,0.186]
[1633105023591,0.00342359,3246.7,3246.6,0.02558556]
[1633105023719,0.81679371,3246.7,3246.6,0.186]
[1633105023919,0.18609371,3246.7,3246.6,0.079913]
[1633105024117,4.0,3246.1,3246.0,5.39850138]
[1633105024320,4.90653376,3246.1,3246.0,5.39850138]
[1633105024521,4.3904328,3244.8,3244.5,0.003]
[1633105024721,0.6728976,3244.7,3244.5,0.003]
[1633105024917,0.6728976,3244.7,3244.2,0.003]
[1633105025117,2.1805976,3244.7,3244.2,0.082913]
[1633105025516,2.1805976,3244.7,3244.3,0.003]
[1633105025920,2.1805976,3244.7,3244.1,6.95852085]
[1633105025921,0.186,3244.6,3244.2,0.003]
[1633105026117,0.9925912,3244.5,3244.2,0.003]
[1633105026316,0.8588976,3244.4,3244.2,0.003]
[1633105026719,7.62344267,3246.0,3245.3,2.46784067]
[1633105027032,0.006,3246.8,3246.0,2.78884334]
[1633105027219,0.006,3246.8,3246.4,0.10396659]
[1633105027419,0.006,3246.8,3246.7,0.02545206]
[1633105027729,1.77780957,3246.8,3246.7,0.17201389]
[1633105027923,1.07281164,3246.8,3246.7,0.17201389]
[1633105028120,0.021,3246.9,3246.7,0.17201389]
[1633105028319,0.006,3247.2,3246.8,13.47494793]
[1633105028320,2.369e-05,3247.2,3246.8,13.47494793]
[1633105028523,4.006,3248.6,3247.2,0.27153101]
[1633105028721,4.006,3248.6,3247.5,12.30487872]
[1633105028920,4.006,3248.6,3247.5,2.03345908]
[1633105029119,4.006,3248.6,3247.5,0.02496572]
[1633105029120,1.17417247,3247.7,3247.5,0.02496572]
[1633105029319,1.17417247,3247.7,3246.8,0.268913]
[1633105029719,1.17417247,3247.7,3246.9,0.003]
[1633105030120,0.00815628,3247.6,3246.9,0.003]
[1633105030319,0.01031256,3247.6,3247.1,0.079913]
[1633105030721,0.01031256,3247.6,3246.9,0.082913]
[1633105031118,0.01031256,3247.6,3247.5,4.70484481]
[1633105031324,0.01031256,3247.6,3247.5,0.87918308]
[1633105031722,0.01031256,3247.6,3247.0,0.003]
[1633105032124,0.01031256,3247.6,3246.9,0.003]
[1633105032321,0.01031256,3247.6,3246.8,0.003]
[1633105032520,0.01031256,3247.6,3247.2,1.1404]
[1633105032722,0.01031256,3247.6,3246.8,0.003]
[1633105032723,0.87348516,3247.5,3246.9,0.74911405]
[1633105032920,0.01031256,3247.6,3246.9,0.78313397]
[1633105033122,0.01031256,3247.6,3247.0,0.003]
[1633105033320,0.01031256,3247.6,3247.0,1.3331]
[1633105033520,0.01031256,3247.6,3247.2,0.079913]
[1633105033726,0.01031256,3247.6,3247.2,0.02441738]
[1633105034120,0.01031256,3247.6,3247.5,0.83026134]
[1633105034320,0.01031256,3247.6,3247.2,0.02441738]
[1633105034520,0.01031256,3247.6,3247.4,1.3981]
[1633105034724,0.01031256,3247.6,3247.2,0.02441738]
[1633105035320,0.98344826,3248.0,3247.2,0.02441738]
[1633105036121,0.98344826,3248.0,3247.0,1.3613]
[1633105036321,0.95126425,3247.8,3247.2,0.90453835]
[1633105036523,0.98344826,3248.0,3247.2,0.90453835]
[1633105036725,0.98344826,3248.0,3247.4,0.02418466]
[1633105037329,1.20359442,3247.9,3247.4,0.02418466]
[1633105038023,0.98344826,3248.0,3247.4,0.02418466]
[1633105038223,0.98344826,3248.0,3247.4,0.10409766]
[1633105038424,0.98344826,3248.0,3247.5,3.0784376]
[1633105038625,0.98344826,3248.0,3247.5,4.2563376]
[1633105038828,0.006,3248.1,3247.9,0.10443356]
[1633105039030,0.006,3248.1,3248.0,0.9835652]
[1633105039226,0.006,3248.1,3248.0,1.2467]
[1633105039426,1.197e-05,3248.5,3248.1,13.45]
[1633105039626,1.197e-05,3248.5,3248.4,0.02529342]
[1633105039830,1.197e-05,3248.5,3248.1,1.4863]
[1633105040026,1.197e-05,3248.5,3248.0,0.02556626]
[1633105040027,0.006,3248.6,3248.4,0.02502455]
[1633105040229,0.006,3248.6,3248.5,13.474613]
[1633105040427,0.006,3248.6,3248.5,0.024613]
[1633105040827,0.00789063,3248.6,3248.5,1.208]
[1633105041027,0.00789063,3248.6,3248.3,3.0769986]
[1633105041228,1.06702016,3248.5,3248.0,0.003]
[1633105041627,1.06702016,3248.5,3247.8,0.003]
[1633105041628,1.8700939,3248.5,3247.8,0.003]
[1633105041829,1.8700939,3248.5,3247.6,3.0781834]
[1633105041830,0.00789063,3248.6,3247.7,7.1266]
[1633105042031,0.00789063,3248.6,3248.1,0.34548894]
[1633105042430,0.00789063,3248.6,3248.2,0.26557594]
[1633105042625,0.00789063,3248.6,3248.2,0.21557594]
[1633105042826,0.00789063,3248.6,3248.3,0.91512277]
[1633105043028,0.00789063,3248.6,3248.4,9.26925]
[1633105043426,0.00789063,3248.6,3248.4,9.21925]
[1633105043826,0.00789063,3248.6,3248.5,9.7213]
[1633105044028,0.00789063,3248.6,3248.5,12.692]
[1633105044229,0.00789063,3248.6,3248.5,6.22764862]
[1633105044425,0.00789063,3248.6,3248.5,6.192]
[1633105044828,0.00789063,3248.6,3248.5,6.91840645]
[1633105045428,0.58243126,3249.4,3248.5,6.91840645]
[1633105045632,3.99386445,3249.9,3248.7,1.7223828]
[1633105045829,3.99386445,3249.9,3248.7,7.8643828]
[1633105046030,3.99386445,3249.9,3249.0,0.003]
[1633105046431,3.99386445,3249.9,3249.4,0.079913]
[1633105046630,3.99386445,3249.9,3249.4,0.76454271]
[1633105046833,3.99386445,3249.9,3249.4,0.84445571]
[1633105047031,0.299,3250.0,3249.4,0.8843769]
[1633105047032,3.99386445,3249.7,3249.4,0.8843769]
[1633105047229,3.99386445,3249.7,3249.5,0.02454406]
[1633105048292,3.99386445,3249.7,3249.6,0.71019842]
[1633105048493,3.99386445,3249.7,3249.5,0.02454406]
[1633105048893,1.46910467,3250.0,3249.2,6.17863718]
[1633105048894,0.99785581,3249.5,3249.2,6.17863718]
[1633105049094,3.99386445,3249.9,3249.2,6.17863718]
[1633105049493,0.299,3250.0,3249.2,6.17863718]
[1633105049692,0.299,3250.0,3249.2,0.03663718]
[1633105049893,0.299,3250.0,3249.0,3.37425313]
[1633105050093,1.08865591,3249.6,3249.2,3.07647]
[1633105050296,1.08865591,3249.6,3249.2,3.11474285]
[1633105050492,0.90301331,3249.4,3249.2,3.11474285]
[1633105051103,3.0770009,3249.0,3248.5,0.003]
[1633105051304,1.18501955,3248.9,3248.5,0.003]
[1633105051502,1.18501955,3248.9,3248.0,0.003]
[1633105051503,2.88761955,3248.9,3248.2,0.003]
[1633105051705,0.85760016,3248.0,3247.6,0.006]
[1633105051903,0.96783928,3248.4,3247.7,0.73430363]
[1633105052103,0.96783928,3248.4,3247.6,0.03723674]
[1633105052303,0.96783928,3248.4,3247.8,0.006]
[1633105052503,6.1570018,3249.0,3247.7,6.198]
[1633105052704,6.1570018,3249.0,3247.7,6.192]
[1633105052906,6.1570018,3249.0,3247.8,0.006]
[1633105053107,1.294,3248.4,3247.8,0.006]
[1633105053304,10.7749918,3249.0,3247.7,0.0052]
[1633105053305,0.148,3248.7,3247.7,0.0052]
[1633105053506,0.98596826,3247.8,3247.5,0.0082]
[1633105053905,0.97448614,3247.8,3247.5,0.0082]
[1633105054304,0.148,3248.7,3247.5,0.0082]
[1633105054907,0.99560072,3247.9,3247.5,0.0082]
[1633105055132,2.58360072,3247.9,3247.5,0.0082]
[1633105055306,2.58360072,3247.9,3247.3,0.0082]
[1633105055510,2.58360072,3247.9,3247.2,0.0082]
[1633105055705,2.58360072,3247.9,3247.8,51.132285]
[1633105055907,3.87760072,3247.9,3247.8,18.90798805]
[1633105056109,3.87760072,3247.9,3247.2,0.003]
[1633105056110,1.21687651,3247.8,3247.2,0.003]
[1633105056311,0.91328789,3247.3,3247.2,0.003]
[1633105056708,0.91328789,3247.3,3246.6,0.006]
[1633105056910,1.21787651,3247.8,3246.6,0.006]
[1633105057109,1.21787651,3247.8,3246.7,0.89875563]
[1633105057110,1.36587651,3247.8,3246.7,0.89875563]
[1633105057308,1.36587651,3247.8,3246.9,3.0793154]
[1633105057710,1.36587651,3247.8,3246.8,0.006]
[1633105057711,1.36587651,3247.8,3247.0,0.006]
[1633105057911,0.88301523,3247.3,3247.0,0.006]
[1633105058113,5.50314523,3247.3,3246.7,0.006]
[1633105058310,3.08522743,3247.2,3246.6,0.006]
[1633105058509,1.10244995,3247.1,3246.6,0.006]
[1633105058710,3.09658438,3247.0,3246.6,0.006]
[1633105059110,3.045546,3247.2,3246.6,0.006]
[1633105059309,4.62036,3247.1,3246.6,0.75310794]
[1633105059511,3.02819559,3247.0,3246.6,0.75310794]
[1633105059812,3.1097431,3247.0,3246.7,0.006]
[1633105060009,3.08039,3246.9,3246.7,0.006]
[1633105060209,1.04606192,3246.8,3246.5,0.009]
[1633105060409,1.04606192,3246.8,3246.3,0.009]
[1633105060410,4.06026207,3246.8,3246.3,0.009]
[1633105060616,0.93925815,3246.5,3246.3,0.009]
[1633105060810,3.20887473,3246.4,3246.3,0.009]
[1633105061011,3.20887473,3246.4,3246.2,0.009]
[1633105061210,4.02015815,3246.5,3246.1,0.009]
[1633105061612,3.0358418,3246.4,3246.1,0.009]
[1633105061812,3.4351285,3246.8,3246.1,0.009]
[1633105062010,0.00131705,3246.4,3246.1,0.009]
[1633105064512,1.00669796,3246.3,3246.1,0.009]
[1633105064712,0.00131705,3246.4,3246.1,0.009]
[1633105065515,1.10425721,3246.2,3246.1,0.009]
[1633105066113,1.82501478,3246.2,3246.1,0.009]
[1633105067613,4.62126,3246.3,3246.1,0.009]
[1633105068615,1.79878362,3246.2,3246.1,0.009]
[1633105069015,0.00131705,3246.4,3246.1,0.009]
[1633105070016,0.98803386,3246.3,3246.1,0.009]
[1633105070215,0.00131705,3246.4,3246.1,0.009]
[1633105073623,0.97685189,3246.3,3246.1,0.009]
[1633105073818,0.00131705,3246.4,3246.1,0.009]
[1633105074624,4.62228705,3246.4,3246.1,0.009]
[1633105074819,0.00131705,3246.4,3246.1,0.009]
[1633105075419,0.94995807,3246.4,3246.1,0.009]
[1633105075621,0.00131705,3246.4,3246.1,0.009]
[1633105075820,4.62236705,3246.4,3246.1,0.009]
[1633105076021,5.54441691,3246.4,3246.1,0.009]
[1633105076823,1.02927391,3246.3,3246.1,0.009]
[1633105078021,1.02927391,3246.3,3245.5,0.003]
[1633105078022,3.08148,3245.9,3245.5,0.003]
[1633105078226,3.08148,3245.9,3245.3,0.003]
[1633105078227,0.148,3245.8,3245.3,0.003]
[1633105078423,0.148,3245.8,3245.0,0.006]
[1633105078624,0.148,3245.8,3245.0,0.75136208]
[1633105078625,0.80169031,3245.6,3245.0,0.75136208]
[1633105078825,0.148,3245.5,3244.5,0.088913]
[1633105079023,0.148,3245.5,3245.1,0.003]